fUSD/lending_fUSD_20241123
["ID","MTS","AMOUNT","RATE_DAILY","PERIOD"]
[343078519,1732332585433,-510.8824302,0.00077898,120]
[343078520,1732332585458,-508.15686084,0.00077898,120]
[343078521,1732332585481,-500.0,0.00077898,120]
[343078522,1732332585504,-500.0,0.00077898,120]
[343078523,1732332585527,-500.0,0.00077898,120]
[343078524,1732332585550,-500.0,0.00077898,120]
[343078525,1732332585572,-500.0,0.00077898,120]
[343078526,1732332585599,-500.0,0.00077898,120]
[343078527,1732332585622,-500.0,0.00077898,120]
[343078528,1732332585651,-319.09370818,0.00077898,120]
[343078529,1732332585676,-500.0,0.00077898,120]
[343078530,1732332585697,-500.0,0.00077898,120]
[343078531,1732332585720,-500.0,0.00077898,120]
[343078532,1732332585743,-500.0,0.00077898,120]
[343078533,1732332585765,-500.0,0.00077898,120]
[343078534,1732332585789,-1162.58,0.00077898,120]
[343078535,1732332585812,-500.0,0.00077898,120]
[343078536,1732332585838,-3825.86,0.00077898,120]
[343078537,1732332585861,-500.0,0.00077898,120]
[343078538,1732332585884,-500.0,0.00077898,120]
[343078539,1732332585908,-166.2111983,0.00077898,120]
[343078540,1732332585932,-3000.0,0.00077898,120]
[343078541,1732332585955,-3000.0,0.00077898,120]
[343078542,1732332585978,-3000.0,0.00077898,120]
[343078543,1732332586006,-3000.0,0.00077898,120]
[343078544,1732332586030,-500.0,0.00077898,120]
[343078545,1732332586053,-227.66374816,0.00077898,120]
[343078546,1732332586076,-288.92579396,0.00077899,30]
[343078547,1732332586102,-200.0,0.00077899,30]
[343078548,1732332586126,-200.0,0.00077899,30]
[343078549,1732332586149,-523.47484405,0.00077899,120]
[343078550,1732332586175,-500.0,0.00077899,30]
[343078551,1732332586197,-680.49,0.00077899,120]
[343078552,1732332586219,-170.06948319,0.000779,120]
[343078553,1732332586345,-200.0,0.000779,28]
[343078554,1732332586397,-174.03179946,0.000779,62]
[343078555,1732332586419,-1931.01996536,0.000779,2]
[343078556,1732332586441,-1159.17955365,0.000779,2]
[343078557,1732332586461,-503.00563323,0.00077973,12]
[343078558,1732332586483,-500.0,0.00077973,2]
[343078559,1732332586506,-163.72,0.00077985,2]
[343078560,1732332586529,-151.87,0.00077989,120]
[343078561,1732332586551,-151.87,0.0007799,120]
[343078562,1732332586575,-151.87,0.0007799,120]
[343078563,1732332586600,-23055.36464055,0.00077996,120]
[343078564,1732332586627,-535.5284527,0.00077997,120]
[343078565,1732332586671,-500.0,0.00077997,120]
[343078566,1732332586694,-368.54132097,0.00077997,120]
[343078567,1732332586717,-265.65875415,0.00077997,120]
[343078568,1732332586741,-520.09300626,0.00077997,120]
[343078569,1732332586765,-288.58209227,0.00077997,120]
[343078570,1732332586788,-523.96186707,0.00077997,120]
[343078571,1732332586811,-500.0,0.00077997,120]
[343078572,1732332586834,-500.0,0.00077997,120]
[343078573,1732332586857,-500.0,0.00077997,120]
[343078574,1732332586880,-435.06072269,0.00077997,120]
[343078575,1732332586903,-500.0,0.00077997,120]
[343078576,1732332586923,-500.0,0.00077997,120]
[343078577,1732332586942,-507.44667223,0.00077997,120]
[343078578,1732332586963,-216.95020076,0.00077997,120]
[343078579,1732332586982,-500.0,0.00077997,120]
[343078580,1732332587011,-211.7,0.00077997,120]
[343078581,1732332587042,-500.0,0.00077997,120]
[343078582,1732332587067,-500.0,0.00077997,120]
[343078583,1732332587093,-159.48803924,0.00077997,120]
[343078584,1732332587116,-500.0,0.00077997,120]
[343078585,1732332587155,-500.0,0.00077998,120]
[343078586,1732332587177,-436.68790166,0.00077998,120]
[343078587,1732332587199,-500.0,0.00077998,120]
[343078588,1732332587220,-500.0,0.00077998,120]
[343078589,1732332587243,-500.0,0.00077998,120]
[343078590,1732332587266,-500.0,0.00077998,120]
[343078591,1732332587289,-500.0,0.00077998,120]
[343078592,1732332587311,-500.0,0.00077998,120]
[343078593,1732332587338,-500.0,0.00077998,120]
[343078594,1732332587360,-500.0,0.00077998,120]
[343078595,1732332587383,-500.0,0.00077998,120]
[343078596,1732332587405,-500.0,0.00077998,120]
[343078597,1732332587427,-1823.15,0.00077998,120]
[343078598,1732332587450,-1823.15,0.00077998,120]
[343078599,1732332587476,-550.88,0.00077998,120]
[343078600,1732332587501,-550.88,0.00077998,120]
[343078601,1732332587524,-500.0,0.00077998,120]
[343078602,1732332587547,-500.0,0.00077998,120]
[343078603,1732332587570,-500.0,0.00077998,120]
[343078604,1732332587595,-500.0,0.00077998,120]
[343078605,1732332587617,-295.35279627,0.00077998,120]
[343078606,1732332587639,-500.0,0.00077998,30]
[343078607,1732332587662,-500.0,0.00077998,120]
[343078608,1732332587684,-1162.58,0.00077998,120]
[343078609,1732332587706,-1162.58,0.00077998,120]
[343078610,1732332587728,-500.0,0.00077998,120]
[343078611,1732332587753,-206.21513937,0.00077998,120]
[343078612,1732332587777,-1280.58,0.00077998,120]
[343078613,1732332587801,-1280.58,0.00077998,120]
[343078614,1732332587824,-3825.86,0.00077998,120]
[343078615,1732332587852,-3857.88,0.00077998,2]
[343078616,1732332587878,-3857.88,0.00077998,2]
[343078617,1732332587903,-500.0,0.00077998,120]
[343078618,1732332587927,-645.02676103,0.00077998,120]
[343078619,1732332587956,-500.0,0.00077998,120]
[343078620,1732332587980,-500.0,0.00077998,120]
[343078621,1732332588003,-500.0,0.00077998,120]
[343078622,1732332588028,-500.0,0.00077998,120]
[343078623,1732332588054,-500.0,0.00077998,120]
[343078624,1732332588079,-500.0,0.00077998,120]
[343078625,1732332588106,-500.0,0.00077998,120]
[343078626,1732332588129,-500.0,0.00077998,120]
[343078627,1732332588152,-500.0,0.00077998,120]
[343078628,1732332588174,-500.0,0.00077998,120]
[343078629,1732332588198,-500.0,0.00077998,120]
[343078630,1732332588222,-500.0,0.00077998,120]
[343078631,1732332588245,-680.49,0.00077998,120]
[343078632,1732332588268,-2387.0,0.00077999,14]
[343078633,1732332588293,-1000.0,0.00077999,30]
[343078634,1732332588315,-1020.1538,0.00077999,30]
[343078635,1732332588344,-1000.0,0.00077999,30]
[343078636,1732332588371,-1000.0,0.00077999,30]
[343078637,1732332588395,-152.13047437,0.00077999,120]
[343078638,1732332588420,-500.0,0.00077999,120]
[343078639,1732332588444,-500.0,0.00077999,120]
[343078640,1732332588467,-500.0,0.00077999,120]
[343078641,1732332588490,-500.0,0.00077999,120]
[343078642,1732332588514,-500.0,0.00077999,120]
[343078643,1732332588538,-500.0,0.00077999,120]
[343078644,1732332588561,-500.0,0.00077999,120]
[343078645,1732332588589,-500.0,0.00077999,120]
[343078646,1732332588614,-500.0,0.00077999,120]
[343078647,1732332588641,-500.0,0.00077999,120]
[343078648,1732332588665,-500.0,0.00077999,120]
[343078649,1732332588688,-500.0,0.00077999,120]
[343078650,1732332588711,-500.0,0.00077999,120]
[343078651,1732332588734,-500.0,0.00077999,120]
[343078652,1732332588759,-261.2276784,0.00077999,120]
[343078653,1732332588783,-500.0,0.00077999,120]
[343078654,1732332588808,-500.0,0.00077999,120]
[343078655,1732332588832,-524.89265262,0.00077999,120]
[343078656,1732332588861,-500.0,0.00077999,120]
[343078657,1732332588885,-500.0,0.00077999,120]
[343078658,1732332588908,-500.0,0.00077999,120]
[343078659,1732332588931,-500.0,0.00077999,120]
[343078660,1732332588955,-500.0,0.00077999,120]
[343078661,1732332588978,-500.0,0.00077999,120]
[343078662,1732332589003,-500.0,0.00077999,120]
[343078663,1732332589026,-500.0,0.00077999,120]
[343078664,1732332589049,-210.44766776,0.00077999,120]
[343078665,1732332589072,-500.0,0.00077999,120]
[343078666,1732332589099,-500.0,0.00077999,120]
[343078667,1732332589122,-500.0,0.00077999,120]
[343078668,1732332589146,-500.0,0.00077999,120]
[343078669,1732332589169,-500.0,0.00077999,120]
[343078670,1732332589192,-500.0,0.00077999,120]
[343078671,1732332589344,-531.29280103,0.00077999,120]
[343078672,1732332589367,-500.0,0.00077999,120]
[343078673,1732332589392,-500.0,0.00077999,120]
[343078674,1732332589417,-500.0,0.00077999,120]
[343078675,1732332589441,-500.0,0.00077999,120]
[343078676,1732332589464,-500.0,0.00077999,120]
[343078677,1732332589488,-500.0,0.00077999,120]
[343078678,1732332589511,-500.0,0.00077999,120]
[343078679,1732332589535,-500.0,0.00077999,120]
[343078680,1732332589558,-500.0,0.00077999,120]
[343078681,1732332589582,-291.81494546,0.00077999,120]
[343078682,1732332589609,-578.22437699,0.00077999,120]
[343078683,1732332589633,-1823.15,0.00077999,120]
[343078684,1732332589657,-1823.15,0.00077999,120]
[343078685,1732332589682,-1823.15,0.00077999,120]
[343078686,1732332589706,-1823.15,0.00077999,120]
[343078687,1732332589729,-1823.15,0.00077999,120]
[343078688,1732332589752,-1823.15,0.00077999,120]
[343078689,1732332589776,-1823.15,0.00077999,120]
[343078690,1732332589799,-1823.15,0.00077999,120]
[343078691,1732332589823,-1823.15,0.00077999,120]
[343078692,1732332589851,-1823.15,0.00077999,120]
[343078693,1732332589874,-1823.15,0.00077999,120]
[343078694,1732332589898,-1823.15,0.00077999,120]
[343078695,1732332589921,-1823.15,0.00077999,120]
[343078696,1732332589944,-1823.15,0.00077999,120]
[343078697,1732332589969,-1823.15,0.00077999,120]
[343078698,1732332589993,-1823.15,0.00077999,120]
[343078699,1732332590016,-1823.15,0.00077999,120]
[343078700,1732332590040,-1823.15,0.00077999,120]
[343078701,1732332590063,-1823.15,0.00077999,120]
[343078702,1732332590085,-1823.15,0.00077999,120]
[343078703,1732332590113,-1823.32722401,0.00077999,120]
[343078704,1732332590135,-550.88,0.00077999,120]
[343078705,1732332590158,-550.88,0.00077999,120]
[343078706,1732332590180,-550.88,0.00077999,120]
[343078707,1732332590205,-550.88,0.00077999,120]
[343078708,1732332590229,-550.88,0.00077999,120]
[343078709,1732332590253,-550.88,0.00077999,120]
[343078710,1732332590277,-550.88,0.00077999,120]
[343078711,1732332590300,-550.88,0.00077999,120]
[343078712,1732332590323,-550.88,0.00077999,120]
[343078713,1732332590349,-550.88,0.00077999,120]
[343078714,1732332590371,-550.88,0.00077999,120]
[343078715,1732332590394,-550.88,0.00077999,120]
[343078716,1732332590417,-550.88,0.00077999,120]
[343078717,1732332590440,-550.88,0.00077999,120]
[343078718,1732332590463,-550.88,0.00077999,120]
[343078719,1732332590485,-550.88,0.00077999,120]
[343078720,1732332590510,-550.88,0.00077999,120]
[343078721,1732332590533,-550.88,0.00077999,120]
[343078722,1732332590556,-550.88,0.00077999,120]
[343078723,1732332590579,-550.88,0.00077999,120]
[343078724,1732332590604,-551.10650519,0.00077999,120]
[343078725,1732332590627,-500.0,0.00077999,120]
[343078726,1732332590650,-500.0,0.00077999,120]
[343078727,1732332590675,-500.0,0.00077999,120]
[343078728,1732332590699,-500.0,0.00077999,120]
[343078729,1732332590723,-500.0,0.00077999,120]
[343078730,1732332590747,-500.0,0.00077999,120]
[343078731,1732332590772,-500.0,0.00077999,120]
[343078732,1732332590795,-500.0,0.00077999,120]
[343078733,1732332590819,-500.0,0.00077999,120]
[343078734,1732332590844,-361.41246419,0.00077999,120]
[343078735,1732332590868,-500.0,0.00077999,120]
[343078736,1732332590892,-500.0,0.00077999,120]
[343078737,1732332590917,-500.0,0.00077999,120]
[343078738,1732332590940,-500.0,0.00077999,120]
[343078739,1732332590963,-500.0,0.00077999,120]
[343078740,1732332590987,-585.36,0.00077999,120]
[343078741,1732332591009,-500.0,0.00077999,120]
[343078742,1732332591032,-500.0,0.00077999,120]
[343078743,1732332591057,-500.0,0.00077999,120]
[343078744,1732332591080,-500.0,0.00077999,120]
[343078745,1732332591105,-500.0,0.00077999,120]
[343078746,1732332591128,-500.0,0.00077999,120]
[343078747,1732332591150,-500.0,0.00077999,120]
[343078748,1732332591174,-500.0,0.00077999,120]
[343078749,1732332591196,-500.0,0.00077999,120]
[343078750,1732332591219,-500.0,0.00077999,120]
[343078751,1732332591242,-500.0,0.00077999,120]
[343078752,1732332591265,-500.0,0.00077999,120]
[343078753,1732332591295,-500.0,0.00077999,120]
[343078754,1732332591318,-500.0,0.00077999,120]
[343078755,1732332591348,-500.0,0.00077999,120]
[343078756,1732332591373,-500.0,0.00077999,120]
[343078757,1732332591397,-500.0,0.00077999,120]
[343078758,1732332591421,-116.80884394,0.00077999,120]
[343078759,1732332607770,500.0,0.00054795,120]
[343078765,1732332632640,-250.0,0.0007,120]
[343078766,1732332632651,-250.0,0.00077,90]
[343078767,1732332632662,-498.62087794,0.000774,2]
[343078768,1732332632673,-501.37912206,0.000774,2]
[343078770,1732332632683,-533.08614908,0.00077699,120]
[343078773,1732332632694,-700.0,0.00077699,120]
[343078781,1732332632914,-2114.53385092,0.00077699,120]
[343078782,1732332632924,-1120.5,0.00077699,120]
[343078783,1732332632934,-500.0,0.00077799,120]
[343078784,1732332632944,-2071.79165421,0.00077799,120]
[343078785,1732332632956,-1275.82834579,0.00077799,120]
[343078786,1732332632965,-390.10371534,0.00077898,120]
[343078787,1732332632977,-730.39628466,0.00077898,120]
[343078788,1732332632987,-208.63059412,0.000779,2]
[343078789,1732332632997,-684.17066282,0.000779,2]
[343078790,1732332633006,-1314.70076608,0.000779,30]
[343078791,1732332633016,-227.43899727,0.000779,2]
[343078792,1732332633026,-500.0,0.00077998,120]
[343078793,1732332633036,-500.0,0.00077998,120]
[343078794,1732332633046,-3347.62,0.00077998,120]
[343078795,1732332633056,-1120.5,0.00077998,120]
[343078796,1732332633066,-418.73765051,0.00077999,120]
[343078797,1732332633076,-500.0,0.00077999,30]
[343078798,1732332633086,-22.21004615,0.00077999,30]
[343078799,1732332633098,-477.78995385,0.00077999,30]
[343078800,1732332633108,-500.0,0.00077999,30]
[343078801,1732332633120,-500.0,0.00077999,30]
[343078802,1732332633129,-500.0,0.00077999,30]
[343078803,1732332633140,-437.96001816,0.00077999,30]
[343078804,1732332633150,-500.0,0.00077999,120]
[343078805,1732332633160,-153.76604877,0.00077999,120]
[343078806,1732332633194,-346.23395123,0.00077999,120]
[343078809,1732332633205,-500.0,0.00077999,120]
[343078810,1732332633215,-211.39175703,0.00077999,120]
[343078813,1732332633227,-288.60824297,0.00077999,120]
[343078815,1732332633237,-500.0,0.00077999,120]
[343078817,1732332633246,-500.0,0.00077999,120]
[343078819,1732332633256,-473.67101708,0.00077999,120]
[343078821,1732332633266,-1162.58,0.00077999,120]
[343078823,1732332633275,-1162.58,0.00077999,120]
[343078825,1732332633286,-830.31463996,0.00077999,120]
[343078827,1732332633298,-332.26536004,0.00077999,120]
[343078829,1732332633308,-1162.58,0.00077999,120]
[343078831,1732332633318,-1162.58,0.00077999,120]
[343078833,1732332633327,-1162.58,0.00077999,120]
[343078835,1732332633337,-1162.58,0.00077999,120]
[343078837,1732332633347,-1162.58,0.00077999,120]
[343078839,1732332633361,-1162.58,0.00077999,120]
[343078841,1732332633374,-1162.58,0.00077999,120]
[343078843,1732332633384,-1162.58,0.00077999,120]
[343078845,1732332633394,-1162.58,0.00077999,120]
[343078847,1732332633406,-1162.58,0.00077999,120]
[343078849,1732332633416,-1162.58,0.00077999,120]
[343078851,1732332633427,-1162.58,0.00077999,120]
[343078853,1732332633436,-1162.58,0.00077999,120]
[343078855,1732332633446,-411.14459374,0.00077999,120]
[343078861,1732332638754,-751.43540626,0.00077999,120]
[343078862,1732332638764,-1162.58,0.00077999,120]
[343078863,1732332638774,-1161.53521841,0.00077999,120]
[343078864,1732332638790,-1.04478159,0.00077999,120]
[343078865,1732332638799,-1162.8137833,0.00077999,120]
[343078866,1732332638809,-445.14333053,0.00077999,120]
[343078867,1732332638821,-54.85666947,0.00077999,120]
[343078868,1732332638830,-546.13478267,0.00077999,120]
[343078869,1732332638840,-500.0,0.00077999,120]
[343078870,1732332638849,-500.0,0.00077999,120]
[343078871,1732332638859,-500.0,0.00077999,120]
[343078872,1732332638869,-500.0,0.00077999,120]
[343078873,1732332638881,-500.0,0.00077999,120]
[343078874,1732332638891,-500.0,0.00077999,120]
[343078875,1732332638901,-500.0,0.00077999,120]
[343078876,1732332638911,-500.0,0.00077999,120]
[343078877,1732332638921,-500.0,0.00077999,120]
[343078878,1732332638931,-181.54783638,0.00077999,120]
[343078879,1732332638972,-318.45216362,0.00077999,120]
[343078880,1732332638981,-419.69091966,0.00077999,120]
[343078881,1732332638991,-479.96588822,0.00077999,120]
[343078882,1732332639000,-500.0,0.00077999,120]
[343078883,1732332639009,-500.0,0.00077999,120]
[343078884,1732332639018,-515.32,0.00077999,120]
[343078885,1732332639027,-500.0,0.00077999,120]
[343078886,1732332639036,-500.0,0.00077999,120]
[343078887,1732332639045,-500.0,0.00077999,120]
[343078888,1732332639054,-200.24,0.00077999,120]
[343078889,1732332639062,-500.0,0.00077999,120]
[343078890,1732332639071,-439.5271563,0.00077999,120]
[343078891,1732332639080,-500.0,0.00077999,120]
[343078892,1732332639089,-500.0,0.00077999,120]
[343078893,1732332639098,-221.83636261,0.00077999,120]
[343078894,1732332639106,-553.10094153,0.00077999,120]
[343078895,1732332639116,-680.49,0.00077999,120]
[343078896,1732332639128,-680.49,0.00077999,120]
[343078897,1732332639137,-680.49,0.00077999,120]
[343078898,1732332639146,-680.49,0.00077999,120]
[343078899,1732332639156,-680.49,0.00077999,120]
[343078900,1732332639165,-680.49,0.00077999,120]
[343078901,1732332639175,-680.49,0.00077999,120]
[343078902,1732332639186,-680.49,0.00077999,120]
[343078903,1732332639196,-680.49,0.00077999,120]
[343078904,1732332639206,-680.49,0.00077999,120]
[343078905,1732332639216,-680.49,0.00077999,120]
[343078906,1732332639226,-680.49,0.00077999,120]
[343078907,1732332639236,-680.49,0.00077999,120]
[343078908,1732332639246,-680.49,0.00077999,120]
[343078909,1732332639255,-680.49,0.00077999,120]
[343078910,1732332639265,-680.49,0.00077999,120]
[343078911,1732332639276,-680.49,0.00077999,120]
[343078912,1732332639287,-680.49,0.00077999,120]
[343078913,1732332639298,-680.60646929,0.00077999,120]
[343078914,1732332639309,-500.0,0.00077999,120]
[343078915,1732332639320,-500.0,0.00077999,120]
[343078916,1732332639331,-500.0,0.00077999,120]
[343078917,1732332639342,-500.0,0.00077999,120]
[343078918,1732332639356,-500.0,0.00077999,120]
[343078919,1732332639366,-500.0,0.00077999,120]
[343078920,1732332639384,-500.0,0.00077999,120]
[343078921,1732332639396,-500.0,0.00077999,120]
[343078923,1732332639406,-466.98212,0.00077999,120]
[343078924,1732332639416,-3347.62,0.00077999,120]
[343078925,1732332639426,-3347.62,0.00077999,120]
[343078926,1732332639437,-3347.62,0.00077999,120]
[343078927,1732332639447,-3347.62,0.00077999,120]
[343078928,1732332639458,-3347.62,0.00077999,120]
[343078929,1732332639468,-3347.62,0.00077999,120]
[343078930,1732332639477,-3347.62,0.00077999,120]
[343078931,1732332639487,-3347.62,0.00077999,120]
[343078932,1732332639497,-3347.62,0.00077999,120]
[343078933,1732332639507,-3347.62,0.00077999,120]
[343078934,1732332639516,-3347.62,0.00077999,120]
[343078935,1732332639526,-3347.62,0.00077999,120]
[343078936,1732332639535,-3347.62,0.00077999,120]
[343078937,1732332639544,-3347.62,0.00077999,120]
[343078938,1732332639670,-3347.62,0.00077999,120]
[343078939,1732332639681,-3347.62,0.00077999,120]
[343078940,1732332639691,-3347.62,0.00077999,120]
[343078941,1732332639701,-3347.62,0.00077999,120]
[343078942,1732332639711,-3347.62,0.00077999,120]
[343078943,1732332639720,-3347.62,0.00077999,120]
[343078944,1732332639730,-3347.84,0.00077999,120]
[343078945,1732332639739,-1120.5,0.00077999,120]
[343078946,1732332639749,-1120.5,0.00077999,120]
[343078947,1732332639762,-1120.5,0.00077999,120]
[343078948,1732332639773,-1120.5,0.00077999,120]
[343078949,1732332639783,-1120.5,0.00077999,120]
[343078950,1732332639792,-1120.5,0.00077999,120]
[343078951,1732332639802,-1120.5,0.00077999,120]
[343078952,1732332639811,-1120.5,0.00077999,120]
[343078953,1732332639822,-1120.5,0.00077999,120]
[343078954,1732332639831,-1120.5,0.00077999,120]
[343078955,1732332639841,-1120.5,0.00077999,120]
[343078956,1732332639850,-1120.5,0.00077999,120]
[343078957,1732332639859,-1120.5,0.00077999,120]
[343078958,1732332639868,-1120.5,0.00077999,120]
[343078959,1732332639880,-1120.5,0.00077999,120]
[343078960,1732332639889,-1120.5,0.00077999,120]
[343078961,1732332639899,-1120.5,0.00077999,120]
[343078962,1732332639907,-1120.5,0.00077999,120]
[343078963,1732332639916,-1120.5,0.00077999,120]
[343078964,1732332639924,-1120.5,0.00077999,120]
[343078965,1732332639933,-1120.69448024,0.00077999,120]
[343078966,1732332639942,-500.0,0.00077999,120]
[343078967,1732332639950,-31781.71712045,0.00078,2]
[343078968,1732332640280,-10536.41082571,0.00078,2]
[343078969,1732332640291,-262.61016,0.00078,2]
[343078971,1732332640537,-346.28132551,0.00077999,120]
[343078972,1732332640548,-190.67867449,0.00077999,120]
[343078973,1732332640557,-3244.74930522,0.00078,2]
[343078974,1732332640567,-998.92999997,0.00078,2]
[343078975,1732332640578,-998.45,0.00078,2]
[343078976,1732332640588,-4312.468795,0.00078,2]
[343078977,1732332640810,157.57,0.00041096,2]
[343078978,1732332640936,-20130.89208322,0.00078,2]
[343078979,1732332640947,-47152.0,0.00078,2]
[343078984,1732332643944,-2432.0,0.00078,2]
[343078985,1732332645051,-26036.34072113,0.00078,2]
[343078986,1732332645076,-10.39581469,0.00078,2]
[343078987,1732332645087,-655.56488593,0.00078,2]
[343078988,1732332645099,-5007.2448293,0.00078,2]
[343078999,1732332646719,-646.85139686,0.000774,2]
[343079002,1732332646731,-3462.80390314,0.000774,2]
[343079004,1732332646741,-1000.0,0.000774,30]
[343079006,1732332646751,-82001.86229686,0.00078,2]
[343079008,1732332646763,-8473.81254741,0.00078,2]
[343079014,1732332650570,-0.28502454,0.00078,2]
[343079016,1732332791200,153.935323,0.00057,120]
[343079017,1732332791406,520.552532,0.00057,120]
[343079025,1732332994760,250.0,0.00031,2]
[343079027,1732333143114,800.0,0.00026986,120]
[343079028,1732333290365,-10000.0,0.000576,120]
[343079029,1732333290392,-10853.72159168,0.000598,120]
[343079030,1732333290417,-10000.0,0.000603,120]
[343079031,1732333290442,-10000.0,0.000603,120]
[343079032,1732333290466,-10000.0,0.000603,120]
[343079033,1732333290490,-10000.0,0.000603,120]
[343079035,1732333423224,150.41636655,0.00052887,14]
[343079037,1732333444678,157.54,0.00041096,2]
[343079038,1732333444879,157.54,0.00046143,2]
[343079039,1732333445091,157.54,0.0005119,2]
[343079040,1732333445312,157.54,0.00056237,120]
[343079041,1732333502283,150.0,0.00034548,10]
[343079042,1732333505474,500.0,0.00054795,120]
[343079043,1732333627109,-7920.04133128,0.000603,120]
[343079044,1732333630100,-2079.95866872,0.000603,120]
[343079045,1732333630127,-157.54,0.00061283,120]
[343079046,1732333630149,-224.43326752,0.00062,120]
[343079047,1732333630172,-500.0,0.00062512,120]
[343079048,1732333630196,-380.0,0.000648,2]
[343079049,1732333630222,-156.05,0.000657,66]
[343079050,1732333630244,-362.78336624,0.00066,120]
[343079051,1732333630268,-157.54,0.0006633,120]
[343079052,1732333630289,-356.0,0.0007,100]
[343079053,1732333630312,-362.78336624,0.0007,120]
[343079054,1732333630334,-24595.79,0.0007,30]
[343079055,1732333630357,-3645.81264152,0.0007,2]
[343079056,1732333703976,265.18172324,0.00057003,2]
[343079057,1732333757083,-502.73087301,0.00067595,120]
[343079058,1732333757104,-3124.73735848,0.0007,2]
[343079059,1732333757125,-437.0,0.0007,100]
[343079060,1732333757145,-437.0,0.000705,101]
[343079061,1732333757165,-437.0,0.00071,102]
[343079062,1732333758298,-157.54,0.00071377,120]
[343079063,1732333758322,-437.0,0.000715,103]
[343079064,1732333758346,-437.0,0.00072,104]
[343079065,1732333758369,-150.0,0.00072295,2]
[343079066,1732333758392,-836.18,0.00072365,2]
[343079067,1732333758414,-4635.15219492,0.000725,2]
[343079078,1732333819985,342.0,0.000648,2]
[343079079,1732333820516,308.0,0.000648,2]
[343079080,1732333831845,-30035.81,0.000722,5]
[343079081,1732333831855,-25364.83780508,0.000725,2]
[343079082,1732333831864,-815.0,0.000725,105]
[343079084,1732333831876,-3550.59060714,0.0007299,2]
[343079087,1732333831886,-30654.04,0.00073,2]
[343079089,1732333831896,-500.0,0.00073039,120]
[343079091,1732333831906,-160.75,0.00073807,120]
[343079093,1732333831916,-986.668,0.000739,120]
[343079094,1732333831926,-166.23621053,0.000739,120]
[343079095,1732333831935,-156.05,0.000739,72]
[343079096,1732333831945,-156.05,0.000739,72]
[343079097,1732333831955,-250.0,0.00074014,120]
[343079098,1732333831966,-2751.0,0.00074144,120]
[343079099,1732333831975,-150.63,0.00074221,120]
[343079100,1732333831986,-162.89,0.00074383,120]
[343079101,1732333831996,-1538.0,0.000745,15]
[343079102,1732333832005,-1000.0,0.00074567,120]
[343079103,1732333832015,-836.18,0.00074629,2]
[343079104,1732333832025,-152.74,0.00074704,2]
[343079105,1732333832037,-800.0,0.00074708,120]
[343079106,1732333832047,-150.0,0.00074832,30]
[343079107,1732333832056,-2206.18,0.00074845,30]
[343079108,1732333832066,-3296.78,0.00074917,2]
[343079109,1732333832076,-157.4,0.00075146,2]
[343079110,1732333832086,-23900.0,0.00075148,2]
[343079111,1732333832095,-250.0,0.00075158,120]
[343079112,1732333832105,-500.0,0.00075199,2]
[343079113,1732333832115,-250.0,0.000752,120]
[343079114,1732333832125,-164.55,0.00075219,2]
[343079115,1732333832135,-200.0,0.00075219,30]
[343079116,1732333832145,-150.0,0.00076393,120]